bitfinex/quotes_ETHUSD_20240719
["timestamp","ask_amount","ask_price","bid_price","bid_amount"]
[1721366349310,0.08228037,3424.3,3424.2,0.0242456]
[1721366349511,2.92012,3424.6,3424.2,0.0242456]
[1721366349722,5.3211,3424.7,3424.2,0.0242456]
[1721366349723,0.08228046,3424.3,3424.2,0.0242456]
[1721366349887,2.92014,3424.5,3424.2,0.0242456]
[1721366350096,0.08228074,3424.4,3424.2,0.0242456]
[1721366351426,2.9203,3424.3,3424.2,0.0242456]
[1721366351907,3.00258085,3424.3,3424.2,0.0242456]
[1721366353413,0.08228085,3424.3,3424.2,0.0242456]
[1721366353911,2.92014,3424.5,3424.2,0.0242456]
[1721366354118,0.08228027,3424.3,3424.2,0.0242456]
[1721366354329,2.92014,3424.5,3424.2,0.0242456]
[1721366354501,0.08228027,3424.3,3424.2,0.0242456]
[1721366354816,2.92014,3424.5,3424.2,0.0242456]
[1721366355021,2.92022,3424.4,3424.2,0.0242456]
[1721366355514,8.24106,3424.7,3424.2,0.0242456]
[1721366355515,3.00258046,3424.3,3424.2,0.0242456]
[1721366356018,0.08228046,3424.3,3424.2,0.0242456]
[1721366356316,2.92006,3424.6,3424.2,0.0242456]
[1721366356474,0.08228066,3424.3,3424.2,0.0242456]
[1721366356805,2.92006,3424.6,3424.2,0.0242456]
[1721366357393,0.08230111,3424.5,3424.2,0.0242456]
[1721366358774,3.0,3424.9,3424.2,0.0242456]
[1721366358980,3.0,3424.9,3424.3,2.92023]
[1721366359178,0.07949696,3424.8,3424.3,2.92023]
[1721366360240,0.07949696,3424.8,3424.2,0.0242456]
[1721366360411,7.68233,3424.5,3424.2,0.0242456]
[1721366360613,2.9203,3424.3,3424.2,0.0242456]
[1721366361123,2.99981024,3424.3,3424.2,0.0242456]
[1721366361417,0.07951024,3424.3,3424.2,0.0242456]
[1721366361825,5.92005,3424.6,3424.2,0.0242456]
[1721366361974,2.92005,3424.6,3424.2,0.0242456]
[1721366362415,0.07951109,3424.5,3424.2,0.0242456]
[1721366363814,2.92024,3424.4,3424.2,0.0242456]
[1721366364029,0.07951082,3424.3,3424.2,0.0242456]
[1721366365502,2.92005,3424.6,3424.2,0.0242456]
[1721366366035,0.07951052,3424.5,3424.2,0.0242456]
[1721366366710,2.99964052,3424.5,3424.2,0.0242456]
[1721366370132,0.07951052,3424.5,3424.2,0.0242456]
[1721366371536,2.99964052,3424.5,3424.2,0.0242456]
[1721366372235,2.92024,3424.4,3424.2,0.0242456]
[1721366372406,0.07947022,3424.3,3424.2,0.0242456]
[1721366372943,2.99977022,3424.3,3424.2,0.0242456]
[1721366373725,5.40157022,3424.3,3424.2,0.0242456]
[1721366374516,2.99977022,3424.3,3424.2,0.0242456]
[1721366376239,0.07947022,3424.3,3424.2,0.0242456]
[1721366376446,2.92013,3424.5,3424.2,0.0242456]
[1721366376805,0.07947128,3424.4,3424.2,0.0242456]
[1721366378044,2.92007,3424.6,3424.2,0.0242456]
[1721366378430,0.07940248,3424.5,3424.2,0.0242456]
[1721366378753,2.91993,3424.8,3424.2,0.56481616]
[1721366378952,2.91953,3425.2,3424.3,2.92028]
[1721366380577,2.91953,3425.2,3424.5,2.92011]
[1721366381878,5.3236,3425.6,3424.6,2.92004]
[1721366381879,2.91929,3425.5,3424.6,2.92004]
[1721366382050,5.3236,3425.6,3424.7,0.292004]
[1721366382051,5.91942,3425.4,3424.7,0.292004]
[1721366382255,2.91942,3425.4,3424.6,2.92004]
[1721366382452,3.0,3425.3,3424.6,2.92004]
[1721366383438,3.0,3425.3,3424.7,2.91996]
[1721366384441,2.91892,3426.0,3424.5,2.4691]
[1721366384636,2.93105685,3426.2,3424.2,0.56481616]
[1721366384637,3.37646685,3426.2,3425.4,2.91929]
[1721366384874,2.91871,3426.2,3425.4,2.91929]
[1721366385289,2.91877,3426.1,3425.5,2.91924]
[1721366390998,2.91877,3426.1,3425.3,2.91939]
[1721366391785,2.91877,3426.1,3425.4,2.4298]
[1721366391954,2.91877,3426.1,3425.4,5.34913]
[1721366392158,2.91877,3426.1,3425.4,6.175994]
[1721366392605,2.91877,3426.1,3425.5,2.91927]
[1721366393099,0.07719502,3426.0,3425.5,2.91927]
[1721366394571,5.91859,3426.4,3425.5,2.91927]
[1721366394774,0.07721172,3425.9,3425.5,2.91927]
[1721366394987,5.91859,3426.4,3425.7,2.91903]
[1721366395478,0.07721204,3426.3,3425.7,2.91903]
[1721366396174,2.99583204,3426.3,3425.5,2.91927]
[1721366396802,2.99583204,3426.3,3425.6,2.91918]
[1721366397764,2.99583204,3426.3,3425.4,5.34912]
[1721366397765,2.91878,3426.1,3425.4,5.34912]
[1721366398166,0.07721206,3426.0,3425.4,5.34912]
[1721366399506,0.07721206,3426.0,3425.5,2.91927]
[1721366399670,2.9186,3426.3,3425.5,6.373377]
[1721366399994,2.99592262,3426.2,3425.5,2.9192]
[1721366400763,2.99592262,3426.2,3425.6,2.91919]
[1721366401991,2.99592262,3426.2,3425.4,2.9193]
[1721366403019,2.91878,3426.1,3425.4,2.9193]
[1721366403374,2.2908,3425.9,3425.3,2.91943]
[1721366403926,0.07719886,3425.8,3425.3,2.91943]
[1721366405279,2.91886,3426.0,3425.3,2.91943]
[1721366405480,0.07734549,3425.9,3425.1,2.4342]
[1721366405802,2.9187,3426.2,3425.6,2.91919]
[1721366405999,0.07734521,3425.8,3425.6,2.91919]
[1721366406181,2.9187,3426.2,3425.6,2.91919]
[1721366406384,0.07734493,3425.7,3425.6,2.91919]
[1721366406582,2.9187,3426.2,3425.6,3.503053]
[1721366406884,2.9187,3426.2,3425.6,2.91919]
[1721366407077,0.07734606,3426.1,3425.6,2.91919]
[1721366408321,2.99612606,3426.1,3425.4,2.91936]
[1721366408679,5.26685,3426.0,3425.4,2.91936]
[1721366408909,2.99628549,3425.9,3425.2,2.91952]
[1721366409131,0.07734549,3425.9,3425.2,2.91952]
[1721366409333,2.91902,3425.8,3425.2,2.91952]
[1721366409831,0.07734493,3425.7,3425.2,2.91952]
[1721366410490,0.07734493,3425.7,3425.3,2.91944]
[1721366410828,5.26685,3426.0,3425.3,2.91944]
[1721366411028,0.07734465,3425.6,3425.3,2.91944]
[1721366411198,2.91894,3425.9,3425.3,2.91944]
[1721366411399,0.07734437,3425.5,3425.3,2.91944]
[1721366411622,2.91894,3425.9,3425.3,3.503352]
[1721366411793,0.07734409,3425.4,3425.3,0.583912]
[1721366412140,0.07734409,3425.4,3425.3,3.503292]
[1721366412295,5.26687,3426.0,3425.3,3.503292]
[1721366412490,2.99629549,3425.9,3425.3,2.91938]
[1721366413209,2.91925,3425.6,3424.9,2.91973]
[1721366413410,2.91925,3425.6,3424.7,2.91995]
[1721366413411,2.91945,3425.3,3424.7,2.91995]
[1721366413609,5.32538,3425.5,3424.3,2.92024]
[1721366413610,2.91969,3425.1,3424.3,2.92024]
[1721366413859,2.4061,3425.0,3424.2,0.0242456]
[1721366414058,2.91988,3424.8,3424.2,2.9446256]
[1721366414344,0.07723603,3424.7,3424.2,2.9446256]
[1721366415942,5.32581,3425.0,3424.4,2.9202]
[1721366416245,0.07723575,3424.6,3424.4,2.9202]
[1721366416405,5.32581,3425.0,3424.4,2.9202]
[1721366416406,2.4061,3425.0,3424.4,2.9202]
[1721366416608,0.07723337,3424.5,3424.4,2.9202]
[1721366416818,2.4061,3425.0,3424.4,2.9202]
[1721366417018,0.07723337,3424.5,3424.2,2.9445856]
[1721366417229,5.32583,3425.0,3424.2,2.9445856]
[1721366417439,0.07723308,3424.4,3424.2,2.9445856]
[1721366417607,5.32583,3425.0,3424.2,2.9445856]
[1721366417813,0.0772328,3424.3,3424.2,2.9445856]
[1721366418047,5.32583,3425.0,3424.2,3.42621137]
[1721366418207,0.0772328,3424.3,3424.2,2.9445856]
[1721366418409,2.91992,3424.8,3424.2,0.0242456]
[1721366418625,0.0772328,3424.3,3424.2,0.0242456]
[1721366418955,0.07707017,3424.3,3424.2,0.0242456]
[1721366419304,5.32586,3425.0,3424.2,0.0242456]
[1721366419510,0.07707186,3424.9,3424.2,0.0242456]
[1721366419740,0.07707186,3424.9,3424.2,2.9446156]
[1721366422413,5.32586,3425.0,3424.2,2.9446156]
[1721366422837,0.07706945,3424.9,3424.2,2.9446156]
[1721366423226,5.32586,3425.0,3424.2,2.9446156]
[1721366423430,0.07706917,3424.8,3424.2,2.9446156]
[1721366423717,0.07706889,3424.7,3424.2,2.9446156]
[1721366423925,5.32586,3425.0,3424.2,2.9446156]
[1721366424126,0.07706945,3424.9,3424.2,2.9446156]
[1721366425357,2.99685945,3424.9,3424.2,2.9446156]
[1721366425524,2.91988,3424.8,3424.2,0.0242456]
[1721366425730,0.0770681,3424.7,3424.2,0.0242456]
[1721366429052,0.0770681,3424.7,3424.3,2.3576]
[1721366429224,0.0770681,3424.7,3424.6,5.84008]
[1721366429443,3.0,3425.4,3424.7,2.91994]
[1721366429638,2.4786,3425.5,3424.6,2.92004]
[1721366429639,2.4786,3425.5,3424.8,2.91986]
[1721366429839,0.07697819,3425.3,3424.8,5.21996]
[1721366430070,0.07697848,3425.4,3425.0,2.91969]
[1721366430365,5.31444,3425.8,3425.0,2.91969]
[1721366430546,0.07691452,3425.3,3425.0,2.91969]
[1721366430729,2.91886,3426.0,3425.1,0.521979]
[1721366430925,2.91886,3426.0,3425.0,2.91969]
[1721366430926,0.07696291,3425.9,3425.2,2.91946]
[1721366432136,3.07696291,3425.9,3425.2,2.91946]
[1721366434673,0.07696291,3425.9,3425.3,2.91943]
[1721366435046,5.36087,3426.1,3425.3,2.91943]
[1721366435241,0.07704038,3425.8,3425.3,2.91943]
[1721366435578,0.07704009,3425.7,3425.3,3.503333]
[1721366435784,5.36087,3426.1,3425.3,3.503333]
[1721366435964,0.07704117,3425.6,3425.3,2.91943]
[1721366436271,2.91885,3426.0,3425.3,2.91943]
[1721366436457,0.07699952,3425.5,3425.3,2.91943]
[1721366436645,2.91885,3426.0,3425.3,2.91943]
[1721366436854,0.07699924,3425.4,3425.3,2.91943]
[1721366437163,0.07699924,3425.4,3425.3,3.503333]
[1721366437339,2.91885,3426.0,3425.3,2.91943]
[1721366437539,0.07700064,3425.9,3425.3,2.91943]
[1721366438039,0.07700064,3425.9,3425.1,2.9196]
[1721366438571,2.99595064,3425.9,3424.9,2.91976]
[1721366438780,2.9192,3425.6,3424.9,2.91976]
[1721366438979,2.9192,3425.6,3424.8,2.3001]
[1721366439140,2.36632021,3425.5,3424.8,5.21995]
[1721366440533,2.36632021,3425.5,3424.8,2.91985]
[1721366441340,5.28560021,3425.5,3424.8,2.91985]
[1721366442534,0.07692021,3425.5,3424.9,2.91978]
[1721366442739,2.3906,3425.8,3424.9,2.91977]
[1721366442961,0.07675645,3425.7,3425.0,2.424]
[1721366443166,0.07675645,3425.7,3425.0,3.0410153]
[1721366443780,0.07675645,3425.7,3425.0,5.9607153]
[1721366444004,0.07675645,3425.7,3425.3,2.91944]
[1721366444504,9.957,3426.4,3425.6,2.91918]
[1721366444505,7.45,3426.4,3425.6,2.91918]
[1721366444673,5.30918,3426.4,3425.6,2.91918]
[1721366445093,2.91861,3426.3,3425.6,2.91918]
[1721366445294,2.91861,3426.3,3425.4,2.91935]
[1721366445487,2.91871,3426.2,3425.4,2.91935]
[1721366445888,2.91871,3426.2,3425.5,2.91927]
[1721366446086,2.3906,3426.4,3425.0,3.0410153]
[1721366446087,5.30916,3426.4,3425.0,3.0410153]
[1721366446285,5.30916,3426.4,3425.5,2.9192]
[1721366446470,3.0,3426.3,3425.5,5.282]
[1721366446686,3.0,3426.3,3425.6,2.91917]
[1721366447503,5.91862,3426.3,3425.6,2.91917]
[1721366447704,3.0,3426.3,3425.5,2.3628]
[1721366447883,3.0,3426.3,3425.7,2.91908]
[1721366448086,5.3906,3426.4,3425.7,2.91908]
[1721366448907,5.3906,3426.4,3425.8,2.919]
[1721366449883,2.3906,3426.4,3425.8,2.919]
[1721366451398,2.3906,3426.4,3425.6,2.91914]
[1721366451599,5.30913,3426.4,3425.6,2.91914]
[1721366452010,5.30912,3426.4,3425.2,5.17301]
[1721366452313,5.30912,3426.4,3425.4,2.91936]
[1721366452314,2.91874,3426.2,3425.4,2.91936]
[1721366453176,0.07440397,3426.1,3425.4,2.91936]
[1721366453589,2.99317397,3426.1,3425.4,2.91936]
[1721366454174,2.2913,3426.0,3425.2,2.91951]
[1721366454617,0.07437276,3425.9,3425.2,2.91951]
[1721366455779,0.07437276,3425.9,3425.3,2.91944]
[1721366456218,2.91882,3426.1,3425.3,2.91944]
[1721366456420,0.07429964,3425.8,3425.3,2.91944]
[1721366456627,2.91882,3426.1,3425.3,3.56504653]
[1721366456782,0.07427269,3425.7,3425.3,3.56504653]
[1721366457099,2.91882,3426.1,3425.3,3.56504653]
[1721366457304,2.9187,3426.2,3425.4,2.91935]
[1721366457618,0.07427312,3426.1,3425.4,2.91935]
[1721366457983,0.07427312,3426.1,3425.5,2.91927]
[1721366458437,2.2664,3426.3,3425.6,0.35648765]
[1721366458726,2.99314922,3426.0,3425.3,2.91944]
[1721366458892,2.91885,3426.0,3425.3,2.91944]
[1721366459091,0.07429924,3425.9,3425.3,2.91944]
[1721366460283,0.07429924,3425.9,3425.4,2.91935]
[1721366460728,2.91877,3426.1,3425.4,2.91935]
[1721366460935,0.07429713,3425.8,3425.4,2.91935]
[1721366461135,2.91877,3426.1,3425.4,2.91935]
[1721366461596,2.91877,3426.1,3425.2,2.91953]
[1721366461597,2.99315779,3426.0,3425.3,2.91942]
[1721366461927,0.07429779,3426.0,3425.3,2.91942]
[1721366462332,2.91878,3426.1,3425.3,3.503315]
[1721366462624,0.07429798,3426.0,3425.3,3.503315]
[1721366463244,0.07429798,3426.0,3425.4,2.91935]
[1721366463530,0.07429798,3426.0,3425.5,2.91927]
[1721366464030,0.0742941,3425.9,3425.5,2.91927]
[1721366464209,3.96368,3426.2,3425.5,2.91927]
[1721366464530,0.07429322,3425.8,3425.5,5.8697395]
[1721366464691,3.96368,3426.2,3425.5,5.8697395]
[1721366464892,0.07429474,3425.7,3425.5,5.22747]
[1721366465091,3.96368,3426.2,3425.5,5.22747]
[1721366465600,0.07429587,3426.1,3425.6,2.91917]
[1721366466216,2.2664,3426.3,3425.6,2.91917]
[1721366466534,0.07429589,3426.0,3425.8,2.91901]
[1721366466685,2.2664,3426.3,3425.8,2.91901]
[1721366466893,0.07431737,3425.9,3425.8,2.91901]
[1721366467118,2.2664,3426.3,3425.8,2.91901]
[1721366467397,2.2664,3426.3,3425.6,2.91917]
[1721366467592,0.07431821,3426.2,3425.6,2.91917]
[1721366468929,0.07431821,3426.2,3425.5,2.3082]
[1721366468930,1.11931821,3426.2,3425.5,5.22746]
[1721366469498,2.91894,3425.9,3425.2,2.91953]
[1721366469850,0.07431761,3425.8,3425.2,2.91953]
[1721366470016,2.91894,3425.9,3425.2,2.91953]
[1721366470418,0.07431748,3425.8,3425.2,2.91953]
[1721366470817,2.91894,3425.9,3425.2,2.91953]
[1721366471127,0.0743173,3425.7,3425.2,2.91953]
[1721366471327,1.11931758,3425.8,3425.2,2.91953]
[1721366471631,0.07431474,3425.7,3425.2,2.91953]
[1721366471814,2.91894,3425.9,3425.2,2.91953]
[1721366472012,0.07431483,3425.6,3425.3,2.91943]
[1721366472196,1.045,3426.0,3425.4,0.688405]
[1721366472400,2.35381537,3425.9,3425.3,2.91943]
[1721366472641,5.27275537,3425.9,3425.2,2.9195]
[1721366473914,2.91911,3425.8,3425.0,2.9197]
[1721366474239,2.9934351,3425.7,3425.0,3.9220843]
[1721366474638,3.96437,3425.4,3424.6,5.91999]
[1721366474942,3.96454,3425.2,3424.2,5.4411156]
[1721366475107,2.91976,3425.0,3424.2,5.4411156]
[1721366475507,0.07411693,3424.9,3424.2,5.4411156]
[1721366475704,2.91976,3425.0,3424.3,0.94066556]
[1721366475923,0.07411626,3424.8,3424.3,0.94066556]
[1721366476104,3.96476,3425.0,3424.3,0.94066556]
[1721366476105,0.07411473,3424.9,3424.3,0.94066556]
[1721366476305,0.07411416,3424.7,3424.3,0.94066556]
[1721366476718,2.91976,3425.0,3424.3,0.94066556]
[1721366476935,0.07393624,3424.6,3424.3,0.94066556]
[1721366477154,2.91976,3425.0,3424.4,0.38852812]
[1721366477361,0.07393596,3424.5,3424.2,2.9446156]
[1721366477567,2.91976,3425.0,3424.2,2.9446156]
[1721366477757,0.07393568,3424.4,3424.2,2.9446156]
[1721366478092,2.91976,3425.0,3424.2,2.9446156]
[1721366478276,2.91994,3424.8,3424.2,0.0242456]
[1721366478574,2.3825,3424.6,3424.2,0.0242456]
[1721366478928,2.99402346,3424.5,3424.2,0.0242456]
[1721366479683,2.9203,3424.3,3424.2,0.0242456]
[1721366480056,2.99414816,3424.3,3424.2,0.0242456]
[1721366482053,0.07384816,3424.3,3424.2,0.0242456]
[1721366482278,2.92006,3424.6,3424.2,0.0242456]
[1721366482593,2.3825,3424.9,3424.2,0.0242456]
[1721366482594,0.07373178,3424.3,3424.2,0.0242456]
[1721366482744,2.92013,3424.5,3424.2,0.0242456]
[1721366482949,0.07373235,3424.3,3424.2,0.0242456]
[1721366483172,2.92013,3424.5,3424.2,0.0242456]
[1721366483357,0.07373235,3424.3,3424.2,0.0242456]
[1721366483562,2.92013,3424.5,3424.2,0.0242456]
[1721366484158,0.07372653,3424.4,3424.2,0.0242456]
[1721366487663,2.99395653,3424.4,3424.2,0.0242456]
[1721366497375,0.07372653,3424.4,3424.2,0.0242456]
[1721366498712,2.99394653,3424.4,3424.2,0.0242456]
[1721366500327,2.9203,3424.3,3424.2,0.0242456]
[1721366500526,8.166,3424.3,3424.2,0.0242456]
[1721366500691,8.23969414,3424.3,3424.2,0.0242456]
[1721366500894,11.15999414,3424.3,3424.2,0.0242456]
[1721366501438,8.23969414,3424.3,3424.2,0.0242456]
[1721366502521,5.91429414,3424.3,3424.2,0.0242456]
[1721366503308,8.28399414,3424.3,3424.2,0.0242456]
[1721366503500,9.32899414,3424.3,3424.2,0.0242456]
[1721366503701,12.24929414,3424.3,3424.2,0.0242456]
[1721366503899,9.32899414,3424.3,3424.2,0.0242456]
[1721366504300,11.20429414,3424.3,3424.2,0.0242456]
[1721366504512,14.75429414,3424.3,3424.2,0.0242456]
[1721366507937,11.83399414,3424.3,3424.2,0.0242456]
[1721366508160,11.28399414,3424.3,3424.2,0.0242456]
[1721366520263,14.75429414,3424.3,3424.2,0.0242456]
[1721366522601,16.57862199,3424.3,3424.2,0.0242456]
[1721366522757,14.75429414,3424.3,3424.2,0.0242456]
[1721366523088,14.75429414,3424.3,3422.9,0.147968]
[1721366523089,5.84282,3423.0,3422.9,0.147968]
[1721366523337,8.76423,3423.0,3422.9,0.147968]
[1721366523543,11.83747912,3423.0,3422.9,0.147968]
[1721366523838,12.38747912,3423.0,3422.9,0.147968]
[1721366524263,2.92187,3422.5,3421.2,1.52455206]
[1721366524405,3.96917,3422.2,3421.0,5.2592]
[1721366524597,3.96917,3422.2,3421.2,1.047]
[1721366524598,0.07285765,3422.1,3421.2,1.047]
[1721366524829,2.92235,3421.9,3421.2,1.047]
[1721366525035,0.0728571,3421.8,3421.2,1.67762]
[1721366525351,2.9952971,3421.8,3421.2,1.67762]
[1721366526304,2.9952971,3421.8,3421.2,0.63062]
[1721366527296,2.9952971,3421.8,3421.0,5.2592]
[1721366527297,2.92253,3421.7,3421.0,2.3361]
[1721366527739,0.07269535,3421.6,3421.0,2.3361]
[1721366528039,2.92262,3421.6,3421.0,2.3361]
[1721366528260,0.07269144,3421.5,3421.0,2.3361]
[1721366530722,2.92278,3421.4,3421.0,2.3361]
[1721366530925,0.07269144,3421.5,3421.0,2.3361]
[1721366530926,2.92286,3421.3,3421.0,2.3361]
[1721366531240,2.99545453,3421.3,3421.0,2.3361]
[1721366531402,2.92296,3421.2,3420.5,2.396]
[1721366531611,0.07259396,3421.1,3420.5,2.86469208]
[1721366532640,2.92253,3421.7,3420.6,2.92346]
[1721366532818,0.07031031,3421.6,3420.5,2.86469208]
[1721366533021,3.0,3421.8,3420.5,2.86469208]
[1721366533349,0.07031075,3421.7,3421.1,2.3939]
[1721366533528,0.07031075,3421.7,3421.2,0.29784169]
[1721366533848,0.07037602,3421.6,3421.4,2.92274]
[1721366534047,2.92205,3422.3,3421.4,2.92274]
[1721366534225,0.07037771,3422.2,3421.4,2.92274]
[1721366535307,3.07037771,3422.2,3421.4,2.92274]
[1721366535859,0.07037771,3422.2,3421.6,2.4551]
[1721366536021,3.0,3422.4,3421.8,2.92243]
[1721366536222,0.07051418,3422.3,3421.8,2.92243]
[1721366536417,2.9217,3422.7,3421.8,2.92243]
[1721366536656,0.07051502,3422.6,3421.8,2.92243]
[1721366536879,0.07051502,3422.6,3422.0,2.92223]
[1721366537179,0.07051502,3422.6,3422.4,2.92186]
[1721366537354,2.92108,3423.4,3422.5,2.92177]
[1721366537727,0.07054979,3423.3,3422.6,2.9217]
[1721366538124,2.92091,3423.6,3422.6,2.9217]
[1721366538374,0.07054735,3423.2,3422.9,2.92149]
[1721366538552,2.92074,3423.8,3422.9,2.92149]
[1721366538880,2.99157467,3423.7,3422.8,2.2971]
[1721366539877,2.99157467,3423.7,3422.8,5.21868]
[1721366540778,2.92091,3423.6,3422.8,5.21868]
[1721366540994,2.92159,3422.8,3421.9,2.92232]
[1721366541278,0.07071849,3422.7,3421.9,2.92232]
[1721366541476,2.92159,3422.8,3421.9,2.92232]
[1721366541648,0.07071849,3422.7,3421.9,2.92232]
[1721366541851,2.92169,3422.7,3421.9,1.114179]
[1721366542162,2.92169,3422.7,3421.9,4.036509]
[1721366542163,0.07071851,3422.6,3421.9,4.036509]
[1721366542488,0.07071851,3422.6,3421.8,2.2971]
[1721366542489,2.92188,3422.5,3421.8,2.2971]
[1721366542693,0.07071851,3422.6,3421.8,2.2971]
[1721366542840,0.07071508,3422.4,3421.4,2.3789]
[1721366543044,2.92194,3422.4,3421.5,2.92263]
[1721366543341,2.9927448,3422.3,3421.5,2.92263]
[1721366543777,2.9927448,3422.3,3421.6,2.9226]
[1721366543987,0.0707148,3422.3,3421.6,2.9226]
[1721366544282,2.92201,3422.3,3421.5,1.073738]
[1721366544491,0.07071497,3422.2,3421.5,1.073738]
[1721366545077,2.92184,3422.5,3421.4,2.3789]
[1721366545292,0.07061338,3422.4,3421.8,2.92241]
[1721366545647,5.92151,3422.9,3421.8,2.92241]
[1721366545648,2.92175,3422.6,3421.8,2.92241]
[1721366545854,0.07061366,3422.5,3421.8,2.92241]
[1721366546143,2.99245366,3422.5,3421.6,2.9226]
[1721366546957,2.99245366,3422.5,3421.4,5.30166]
[1721366546958,0.07061366,3422.5,3421.5,2.92268]
[1721366547168,0.07061366,3422.5,3421.8,2.92242]
[1721366547703,2.92111,3423.4,3422.4,2.92191]
[1721366548994,2.92124,3423.2,3422.4,2.92191]
[1721366549570,2.92111,3423.4,3422.6,2.92174]
[1721366551255,2.92116,3423.3,3422.4,2.92191]
[1721366551459,2.92116,3423.3,3422.5,2.92183]
[1721366551658,5.92075,3423.8,3422.5,2.92183]
[1721366551903,5.92075,3423.8,3422.5,3.461073]
[1721366552393,2.92097,3423.6,3422.8,2.92158]
[1721366552561,5.92099,3423.5,3422.6,2.9217]
[1721366552761,2.92099,3423.5,3422.6,2.9217]
[1721366554765,2.92086,3423.7,3422.5,3.461073]
[1721366554961,2.92086,3423.7,3422.9,2.92143]
[1721366555977,2.92086,3423.7,3422.9,5.26313]
[1721366557157,2.9209,3423.6,3422.9,2.3417]
[1721366557356,2.9209,3423.6,3422.7,2.92162]
[1721366557607,3.0,3424.2,3423.4,2.92098]
[1721366557777,2.92035,3424.3,3423.3,2.57141494]
[1721366557976,3.0,3424.2,3423.5,2.92098]
[1721366558181,3.06877111,3424.2,3423.5,2.92098]
[1721366558989,0.06877111,3424.2,3423.6,2.92086]
[1721366559364,5.92023,3424.4,3423.6,2.92086]
[1721366559692,0.06882993,3424.3,3423.6,2.92086]
[1721366561280,2.98912993,3424.3,3423.6,2.92086]
[1721366562265,0.06882993,3424.3,3423.6,2.92086]
[1721366567685,2.98913993,3424.3,3423.5,2.4982]
[1721366568009,2.98913993,3424.3,3423.5,5.41918]
[1721366577707,0.06882993,3424.3,3423.7,2.9208]
[1721366578034,0.06882993,3424.3,3423.8,2.92071]
[1721366578412,2.92005,3424.6,3423.8,2.92071]
[1721366578616,0.06255495,3424.2,3423.8,2.92071]
[1721366578940,0.06256391,3424.1,3423.8,3.754689]
[1721366579541,0.06258764,3424.0,3423.8,3.754689]
[1721366580043,2.92005,3424.6,3423.8,3.754689]
[1721366580223,0.06262059,3423.9,3423.8,3.754689]
[1721366580427,2.92005,3424.6,3423.8,3.754689]
[1721366580602,0.06262059,3423.9,3423.8,2.92071]
[1721366580805,2.92005,3424.6,3423.8,2.92071]
[1721366581444,0.06262228,3424.5,3423.8,2.92071]
[1721366582241,0.06262228,3424.5,3423.9,2.92064]
[1721366582619,2.91989,3424.8,3423.9,2.92064]
[1721366582825,0.06263493,3424.4,3423.9,2.92064]
[1721366583004,2.91989,3424.8,3423.9,2.92064]
[1721366583217,0.06263465,3424.3,3424.0,2.92051]
[1721366583505,0.06263427,3424.2,3424.0,2.92051]
[1721366583732,2.91989,3424.8,3424.0,2.92051]
[1721366583938,0.0626336,3424.1,3424.0,2.92051]
[1721366584136,2.92006,3424.6,3423.8,2.9207]
[1721366584341,2.92006,3424.6,3423.9,2.92064]
[1721366584544,0.06263492,3424.5,3423.9,2.92064]
[1721366585344,2.91989,3424.8,3423.9,2.92064]
[1721366585508,0.06264572,3424.4,3423.9,2.92064]
[1721366585834,2.91989,3424.8,3423.7,2.92081]
[1721366586052,0.06262153,3424.3,3424.0,2.92055]
[1721366586236,2.91989,3424.8,3424.0,2.92055]
[1721366586432,0.06262863,3424.2,3424.0,2.92055]
[1721366586620,2.91989,3424.8,3424.0,2.92055]
[1721366586821,0.0626302,3424.1,3424.0,2.92055]
[1721366587028,2.91989,3424.8,3424.0,2.92055]
[1721366587343,0.06263189,3424.7,3424.0,2.92055]
[1721366587705,0.06263189,3424.7,3424.1,2.92046]
[1721366588918,0.06263189,3424.7,3424.2,2.92038]
[1721366589107,2.3633,3424.9,3424.2,2.92038]
[1721366589316,0.06265629,3424.8,3424.2,2.92038]
[1721366590622,3.06265629,3424.8,3424.2,2.92038]
[1721366594270,0.06265629,3424.8,3424.2,2.92038]
[1721366596973,0.06265629,3424.8,3424.1,1.045]
[1721366597269,3.06265629,3424.8,3424.1,3.96545]
[1721366602380,5.98253629,3424.8,3424.1,3.96545]
[1721366603376,2.92001,3424.7,3423.9,3.96564]
[1721366603584,2.2837,3424.6,3423.9,3.96564]
[1721366603747,5.26646123,3424.6,3423.9,1.045]
[1721366603944,5.26646123,3424.6,3423.7,3.96579]
[1721366604290,2.92025,3424.4,3423.7,3.96579]
[1721366604582,0.06271225,3424.3,3423.7,3.96579]
[1721366606352,2.98301225,3424.3,3423.7,1.045]
[1721366606885,0.06271225,3424.3,3423.7,1.045]
[1721366607094,0.06271225,3424.3,3423.9,1.045]
[1721366607265,2.92019,3424.5,3423.9,1.045]
[1721366607769,2.9829474,3424.4,3423.9,1.045]
[1721366609071,2.92031,3424.3,3423.9,1.045]
[1721366609517,0.06266683,3424.2,3423.9,1.045]
[1721366609825,2.92031,3424.3,3423.9,1.045]
[1721366609973,0.06266655,3424.1,3423.9,1.045]
[1721366610487,2.92031,3424.3,3423.9,1.045]
[1721366610673,0.06266627,3424.0,3423.9,1.045]
[1721366611217,2.92031,3424.3,3423.9,1.045]
[1721366611507,0.06265534,3424.0,3423.9,1.045]
[1721366611707,2.92031,3424.3,3423.9,1.045]
[1721366612321,0.0626559,3424.2,3423.9,1.045]
[1721366612687,2.92031,3424.3,3423.9,1.045]
[1721366612893,0.06265562,3424.1,3423.9,1.045]
[1721366613212,2.92031,3424.3,3423.9,1.045]
[1721366613384,0.06265534,3424.0,3423.9,1.045]
[1721366613572,2.92031,3424.3,3423.9,1.045]
[1721366613777,0.06265534,3424.0,3423.9,1.045]
[1721366614100,2.92031,3424.3,3423.9,1.045]
[1721366614294,0.06265534,3424.0,3423.9,1.045]
[1721366614610,2.92019,3424.5,3423.9,1.045]
[1721366614815,0.06265519,3424.0,3423.9,1.045]
[1721366615112,2.92019,3424.5,3423.9,1.045]
[1721366615312,0.06265519,3424.0,3423.9,1.045]
[1721366615497,2.92019,3424.5,3423.9,1.045]
[1721366615812,0.06265519,3424.0,3423.9,1.045]
[1721366616025,2.92019,3424.5,3423.9,1.045]